[Event "26th Triest Festival 2024"]
[Site "Triest"]
[Date "2024.09.03"]
[Round "5.2"]
[White "Barp, Alberto"]
[Black "Zhou, Yang-Fan"]
[Result "1-0"]
[Annotator "TA"]
[ECO "E62"]
[WhiteElo "2431"]
[BlackElo "2437"]
[PlyCount "75"]
[EventDate "2024.09.02"]
[EventType "swiss"]
[EventCountry "ITA"]
[SourceTitle "playchess.com"]
[Source "ChessBase"]
[SourceQuality "1"]
[TimeControl "5400+30"]

{[%evp 13,75,25,36,35,27,41,33,33,36,17,25,16,27,16,57,50,82,77,83,23,82,74,85,77,88,95,108,104,102,98,98,58,135,73,68,80,678,137,150,134,147,127,230,241,233,201,259,233,306,235,550,555,583,578,503,433,779,767,777,766,910,899,29996,29997]} 1. d4 {[%emt 0:10:49]} Nf6 {[%emt 0:00:09]} 2. c4 {[%emt 0:00:08]} g6 {[%emt 0:03:55]} 3. g3 {[%emt 0:00:06]} Bg7 {[%emt 0:00:10]} 4. Bg2 {[%emt 0:00:07]} O-O {[%emt 0:00:08]} 5. Nc3 {[%emt 0:00:08]} d6 {[%emt 0:00:09]} 6. Nf3 {[%emt 0:04:18]} c6 {[%emt 0:00:08]} 7. O-O {[%emt 0:00:07]} Bf5 {[%emt 0:00:11]} 8. Ng5 {[%emt 0:00:17]} e5 {[%emt 0:00:12]} 9. d5 {[%emt 0:00:18]} a5 {[%emt 0:17:34]} 10. e4 {[%emt 0:00:11] White is slightly better.} Bc8 {[%emt 0:00:20]} 11. f3 {[%emt 0:15:59]} b5 {[%emt 0:00:11]} 12. cxb5 {[%emt 0:00:08]} cxb5 {[%emt 0:00:09]} 13. Be3 {[%emt 0:00:14]} Ba6 {[%emt 0:00:09]} 14. Rf2 {[%emt 0:00:13][%cal Bf1f2,Bf2c2,Bc2c6][%mdl 32]} Nbd7 {[%emt 0:19:09]} 15. Bf1 {[%emt 0:00:12]} Qb8 {[%emt 0:00:20]} 16. Qb3 {[%emt 0:01:57]} (16. a4 $16) 16... b4 {[%emt 0:00:07]} (16... a4 $11 17. Qb4 Rc8) 17. Bxa6 $16 {[%emt 0:22:10]} Rxa6 {[%emt 0:00:09]} 18. Na4 {[%emt 0:00:09]} Rc8 {[%emt 0:29:24]} 19. Rc2 {[%emt 0:00:11][%cal Oc2c6]} Bf8 {[%emt 0:00:10] [#]} 20. Rc6 $1 {[%emt 0:00:15][%mdl 512]} Qb7 {[%emt 0:00:15]} 21. Rac1 $36 {[%emt 0:31:28][%mdl 2048] Prevents Nc5. White is in control.} Nc5 {[%emt 0:00:13]} 22. Bxc5 {[%emt 0:00:12]} dxc5 {[%emt 0:00:14]} (22... Raxc6 $14 23. dxc6 Rxc6) 23. R1xc5 {[%emt 0:00:32] White has more active pieces.} (23. Nxc5 $6 Raxc6 24. dxc6 Qa7 $11) (23. Rxc8 $142 Qxc8 24. d6) 23... Raxc6 {[%emt 0:16:32]} 24. Rxc6 {[%emt 0:00:13] Nxf7 is the strong threat.} h6 $2 {[%emt 0:00:08][%mdl 8192] [#]} (24... Ne8 $16) 25. Qc4 $2 {[%emt 0:00:11]} (25. Nxf7 $1 $18 Kxf7 26. Qc4) 25... Rxc6 {[%emt 0:00:11]} 26. dxc6 {[%emt 0:00:10]} Qa7+ {[%emt 0:00:30]} 27. Kg2 {[%emt 0:00:30]} Bd6 {[%emt 0:00:30]} (27... Ne8 $16) 28. Ne6 $18 {[%emt 0:00:30] Black must now prevent c7.} Ne8 {[%emt 0:00:30]} 29. Nec5 {[%emt 0:00:30]} Nc7 {[%emt 0:00:30] Black is weak on the light squares} 30. Kf1 {[%emt 0:00:30]} Kf8 {[%emt 0:00:30]} 31. Nb7 {[%emt 0:00:30] Excellent horsemanship.} Ke7 {[%emt 0:00:30]} (31... Be7 {is tougher.}) 32. Nxd6 {[%emt 0:00:30]} Kxd6 {[%emt 0:00:30][%cal Be7d6,Bd6c6,Bc6b5][%mdl 32]} 33. Qxf7 {[%emt 0:00:30][%csl Gc6][%cal Rf7d7] KQN-KQN} Qa6+ {[%emt 0:00:30]} 34. Kg1 {[%emt 0:00:30][%csl Gc6][%cal Rf7d7]} Qa7+ {[%emt 0:00:30]} (34... Kxc6 $142 35. Qf6+ (35. Qxg6+ Kb5 $18) 35... Kb5 36. Qxe5+ Kc6) 35. Kg2 {[%emt 0:00:30][%csl Gc6][%cal Rf7d7]} Kxc6 {[%emt 0:00:30]} 36. Qxg6+ {[%emt 0:00:30]} Kb5 {[%emt 0:00:30] [#]} 37. Qd6 $1 {[%emt 0:00:30] White wants to mate with Qd7+.} Qb7 {[%emt 0:00:30]} (37... Na6 38. Qxe5+) 38. b3 {[%emt 0:00:30] Weighted Error Value: White=0.43/Black=0.64.  Loses game:     	---       	Black=1      Missed win:     	White=1     	---        Mistake:       	White=2     	Black=5      Inaccurate:     	White=1     	Black=3      OK:         	White=11    	Black=7      Best:        	White=5     	Black=1} (38. Qxe5+ Kxa4 39. Qd6 Na6 40. Qxh6 Qc7 $16) 1-0

[Event "26th Triest Festival 2024"]
[Site "Triest"]
[Date "2024.09.03"]
[Round "5.3"]
[White "Colonetti, Fabio"]
[Black "Baklan, Vladimir"]
[Result "0-1"]
[Annotator "TA"]
[ECO "A21"]
[WhiteElo "2118"]
[BlackElo "2535"]
[PlyCount "66"]
[EventDate "2024.09.02"]
[EventType "swiss"]
[EventCountry "ITA"]
[SourceTitle "playchess.com"]
[Source "ChessBase"]
[SourceQuality "1"]
[TimeControl "5400+30"]

{[%evp 10,65,23,24,24,23,26,25,34,10,24,0,0,0,4,-15,-16,-9,-21,-56,-34,-47,-38,-45,-41,-39,-43,-40,-25,-77,-76,-83,-44,-81,-56,-89,0,-174,-120,-125,-90,-124,0,0,0,-46,-47,-140,-134,-219,-186,-181,-202,-755,-732,-3026,-3021,-29999]} 1. c4 {[%emt 0:00:08]} e5 {[%emt 0:02:13]} 2. g3 {[%emt 0:00:18]} g6 {[%emt 0:02:20]} 3. Bg2 {[%emt 0:00:55]} Bg7 {[%emt 0:00:04]} 4. Nc3 {[%emt 0:00:18]} Ne7 {[%emt 0:01:06]} 5. d3 {[%emt 0:00:44]} c6 {[%emt 0:00:40]} 6. e4 {[%emt 0:01:43]} d6 {[%emt 0:01:36]} 7. Nge2 {[%emt 0:02:39]} a6 {[%emt 0:00:10]} 8. O-O {[%emt 0:13:34]} b5 {[%emt 0:02:26] White has an edge.} 9. a3 {[%emt 0:00:33]} Be6 {[%emt 0:10:15]} 10. b3 {[%emt 0:10:26]} O-O {[%emt 0:03:21]} 11. Be3 {[%emt 0:02:44]} Nd7 {[%emt 0:08:56]} 12. cxb5 {[%emt 0:07:20]} axb5 {[%emt 0:00:40]} 13. d4 {[%emt 0:01:23] Prevents Nc5} Qb8 {[%emt 0:05:34]} 14. d5 {[%emt 0:13:03]} cxd5 {[%emt 0:01:19]} 15. exd5 {[%emt 0:03:19]} Bf5 {[%emt 0:00:31]} 16. a4 {[%emt 0:03:13]} bxa4 {[%emt 0:04:54]} 17. bxa4 {[%emt 0:00:32]} Rc8 {[%emt 0:00:35]} 18. Qd2 {[%emt 0:15:04]} Nc5 {[%emt 0:03:15]} 19. Bxc5 {[%emt 0:00:21]} (19. Ra3 $1 $11) 19... Rxc5 $17 {[%emt 0:00:05]} 20. Ra2 {[%emt 0:02:34][%cal Ba1a2,Ba2b2,Bb2b4][%mdl 32]} Nc8 {[%emt 0:12:52] Black is more active.} 21. Rb2 {[%emt 0:07:16]} Qa7 {[%emt 0:00:29]} 22. Rb4 {[%emt 0:01:49]} Nb6 {[%emt 0:07:09]} ({Black should try} 22... Qa5 $17 23. Qb2 Bd3) 23. Ra1 $2 {[%emt 0:04:18]} (23. g4 $1 $11 Bd7 24. Rfb1 Nxa4 25. Nxa4 Bxa4 26. Nc3) 23... Nc4 {[%emt 0:07:05]} ({Better is} 23... e4 $1 $19 {[%cal Ob6d5] White must now prevent ...Nxd5!} 24. Bxe4 Bxe4 25. Rxe4 Qa5) 24. Qa2 {[%emt 0:00:38]} Rac8 $36 {[%emt 0:01:05][%mdl 2048] Black is on the roll.} 25. Be4 {[%emt 0:04:20]} Na5 {[%emt 0:07:34]} (25... Bg4 $17 {...f5 would now be deadly.} 26. h3 Bxh3) 26. Bxf5 $11 {[%emt 0:01:34]} gxf5 {[%emt 0:00:04]} 27. Nb5 {[%emt 0:00:38]} (27. Rab1 $11 {was preferrable.}) 27... Qd7 $15 {[%emt 0:00:13][%cal Of5f4]} 28. Rab1 {[%emt 0:00:31] [#]} ({White should play} 28. Rd1 $15) 28... f4 $1 $17 {[%emt 0:00:50] ...f3 is the strong threat.} 29. f3 {[%emt 0:01:47] [#]} (29. gxf4 $2 {perishes.} Rc2 30. Qa3 (30. R1b2 $2 Rxe2 31. Kf1 Rxb2 $19) 30... Rxe2 $19) (29. Qa3 $17 {might work better.}) 29... Nc4 $1 $19 {[%emt 0:05:36] Threatens to win with ...Ne3.} 30. Nec3 {[%emt 0:00:31]} Ne3 {[%emt 0:00:10][%cal Oe5e4]} 31. Qd2 $2 {[%emt 0:00:47] [#]} (31. Qf2) 31... e4 $1 {[%emt 0:02:37][%mdl 512]} 32. R1b3 {[%emt 0:00:37]} (32. gxf4 exf3) 32... Qh3 {[%emt 0:01:02]} 33. Qe1 {[%emt 0:00:49] Dodges Qf1+} Qg2# {[%emt 0:00:56] Weighted Error Value: White=0.77/Black=0.14 (very precise) .  Loses game:     	White=1     	---        Mistake:       	White=5     	Black=3      Inaccurate:     	White=5     	Black=1      OK:         	White=6     	Black=10     Best:        	White=2     	Black=1      Strong:       	---       	Black=2      Brilliant:      	---       	Black=1} 0-1

[Event "26th Triest Festival 2024"]
[Site "Triest"]
[Date "2024.09.03"]
[Round "5.4"]
[White "Tiviakov, Sergei"]
[Black "Marn, Jan"]
[Result "0-1"]
[Annotator "TA"]
[ECO "C77"]
[WhiteElo "2531"]
[BlackElo "2344"]
[PlyCount "170"]
[EventDate "2024.09.02"]
[EventType "swiss"]
[EventCountry "ITA"]
[SourceTitle "playchess.com"]
[Source "ChessBase"]
[SourceQuality "1"]
[TimeControl "5400+30"]

{[%evp 16,170,24,22,18,19,22,18,25,35,24,26,71,31,200,205,189,147,147,91,82,72,72,97,123,-35,-24,-142,-143,-131,-150,-147,-154,-156,-168,-140,-162,-146,-112,-166,-168,-164,-45,-272,-81,-977,-41,-83,-81,-85,-91,-92,-91,-100,-114,-114,-112,-102,-103,-135,-145,-127,-125,-128,-114,-146,-156,-174,-129,-184,-173,-182,-175,-200,-170,-246,-238,-307,-319,-387,-197,-189,-162,-172,-168,-164,-161,-163,-139,-180,-186,-172,-183,-185,-182,-171,-118,-136,-114,-161,-177,-199,-183,-189,-77,-73,-78,-77,-75,-133,-133,-235,-223,-223,-213,-714,-714,-707,-700,-811,-702,-702,-702,-695,-702,-790,-497,-858,-858,-866,-866,-866,-858,-804,-804,-785,0,-804,0,-701,-548,-680,-508,-775,-797,-672,-671,-675,-675,-1736,-560,-3177,-2507,-29974,-29975,-29963,-11456]} 1. e4 {[%emt 0:00:02]} e5 {[%emt 0:06:38]} 2. Nf3 {[%emt 0:00:05]} Nc6 {[%emt 0:00:05]} 3. Bb5 {[%emt 0:00:06]} a6 {[%emt 0:00:05]} 4. Ba4 {[%emt 0:00:05]} Nf6 {[%emt 0:00:06]} 5. d3 {[%emt 0:00:33]} d6 {[%emt 0:01:15]} 6. c3 {[%emt 0:00:06]} g6 {[%emt 0:00:04]} 7. O-O {[%emt 0:00:22]} Bg7 {[%emt 0:00:07]} 8. Re1 {[%emt 0:00:23]} O-O {[%emt 0:00:13]} 9. h3 {[%emt 0:00:15]} b5 {[%emt 0:02:58]} 10. Bc2 {[%emt 0:00:07]} Bb7 {[%emt 0:01:49]} 11. Be3 {[%emt 0:00:05]} Qe7 {[%emt 0:02:05] The position is equal.} 12. Nbd2 {[%emt 0:00:07]} Nd8 {[%emt 0:00:34]} 13. d4 {[%emt 0:00:26]} Nh5 {[%emt 0:03:20]} 14. Nb3 {[%emt 0:05:02]} f5 $2 {[%emt 0:14:35]} (14... exd4 $14 15. Bg5 f6) 15. exf5 $1 $18 {[%emt 0:11:20]} e4 {[%emt 0:00:33]} (15... gxf5 $2 16. dxe5 Qe8 17. exd6 cxd6 18. Nbd4 $18 (18. Qxd6 Bxf3 19. gxf3 Kh8 $18)) 16. Bg5 {[%emt 0:04:32]} Qe8 {[%emt 0:00:30]} 17. fxg6 {[%emt 0:00:06]} ({White should play} 17. Na5 {Strongly threatening Nxb7.} Bd5 18. Bb3) 17... Qxg6 $16 {[%emt 0:00:46]} 18. d5 {[%emt 0:08:18] Against Ne6} Rxf3 {[%emt 0:00:45]} 19. Bxd8 {[%emt 0:01:14]} Rxd8 {[%emt 0:20:38]} (19... Nf4 $2 20. Qxf3 (20. Rxe4 $2 Qxg2#) 20... exf3 21. Bxg6 $18) 20. Rxe4 $2 {[%emt 0:04:35]} ({Only move:} 20. Bxe4 $16 Rf5 21. g4) 20... Rf5 $15 {[%emt 0:03:42]} (20... Rxh3 $2 21. Re3 Ng3 22. Rxg3 (22. Bxg6 $2 Rh1#) (22. gxh3 Nf5+ $18) 22... Rxg3 23. Bxg6 Rxg6 24. Na5 $18) 21. Rh4 {[%emt 0:13:51] [#]} (21. Rg4 $11 Rxd5 22. Qxd5+ Bxd5 23. Bxg6 hxg6 24. Rxg6) 21... Rxd5 $1 $17 {[%emt 0:03:03]} 22. Bxg6 {[%emt 0:01:32]} Rxd1+ $40 {[%emt 0:00:09][%mdl 128] Black goes for the king.} 23. Rxd1 {[%emt 0:00:02]} hxg6 {[%emt 0:00:06]} 24. Nc5 {[%emt 0:00:31]} Bc8 {[%emt 0:01:12]} (24... dxc5 $2 25. Rxd8+ Bf8 26. Rg4 $18) 25. Re4 {[%emt 0:00:04]} Kf7 {[%emt 0:04:36] Prevents Re7+} 26. Re3 {[%emt 0:00:43]} Re8 {[%emt 0:02:03]} 27. Ne4 {[%emt 0:00:12]} (27. Rxe8 $17 Kxe8 28. Nd3) 27... Bh6 $19 {[%emt 0:00:55]} 28. Ree1 {[%emt 0:02:50]} Be6 {[%emt 0:07:30]} (28... Bb7 $19 29. Nxd6+ cxd6 30. Rxe8 Kxe8 31. Rxd6 Nf4) 29. Rd3 $2 {[%emt 0:47:26]} (29. Rxd6 $1 $15 Bf5 30. f3 Rxe4 (30... cxd6 $2 31. Nxd6+ Kg7 32. Nxf5+ gxf5 33. Rxe8 $18) (30... Bxe4 31. Rd7+ Kf6 32. Rxe4 $11) 31. fxe4 cxd6 32. exf5 gxf5 33. a4 bxa4 34. Ra1) 29... d5 $2 (29... Bf5 $19 {has better winning chances.} 30. f3 Ng3) 30. Rxd5 $2 {[%emt 0:00:00][%mdl 8192]} Bf5 $2 {[%emt 0:06:50]} (30... Bxd5 $19 31. f3 Nf6 (31... Bxa2 $2 32. h4 $19) (31... Bxe4 $2 32. fxe4 Ng3 33. Rd1 $19)) 31. Rd4 {[%emt 0:00:00]} Nf6 {[%emt 0:00:34]} 32. f3 {[%emt 0:00:00]} Nxe4 {[%emt 0:00:04]} 33. fxe4 {[%emt 0:00:00]} Be6 {[%emt 0:00:06] Prevents Rd5} 34. a3 {[%emt 0:00:00]} Ke7 {[%emt 0:00:34][%mdl 1024] Black has strong compensation.} 35. e5 {[%emt 0:00:00]} Bg5 {[%emt 0:04:59]} 36. h4 {[%emt 0:00:00]} Bh6 {[%emt 0:00:02]} 37. Rd3 {[%emt 0:00:00]} Rf8 {[%emt 0:01:37]} 38. Rg3 {[%emt 0:00:00]} Bf5 {[%emt 0:00:04] Black is more active.} 39. Rf3 {[%emt 0:00:00]} Ke6 {[%emt 0:02:22]} 40. Ref1 {[%emt 0:00:00][%cal Og2g4]} Rg8 {[%emt 0:04:27]} (40... Kxe5 $2 {too greedy.} 41. g4 $18) 41. h5 {[%emt 0:00:00]} Be4 {[%emt 0:03:28][%cal Og6h5]} 42. Rh3 {[%emt 0:00:00]} (42. Rg3 $17 {might work better.}) 42... Kxe5 {[%emt 0:01:20]} 43. Re1 {[%emt 0:00:00]} Kd5 {[%emt 0:02:12]} 44. Rh4 {[%emt 0:00:00]} Bc2 {[%emt 0:00:01]} 45. Re7 {[%emt 0:00:00]} (45. Re2 {was necessary.} Bf5 46. a4) 45... Kc6 {[%emt 0:00:58]} 46. Rg4 {[%emt 0:00:00] Against Bg5} Bf5 {[%emt 0:01:14]} 47. Rg3 {[%emt 0:00:00]} Bf8 {[%emt 0:00:11]} (47... Bf4 $142 48. Rf3 Bd6 49. hxg6 Bxe7 50. Rxf5 Bc5+ (50... Rxg6 $2 51. Kf2 $19) 51. Kh2 Rxg6) 48. Rf7 {[%emt 0:00:00] Black must now prevent Rxf5.} Bd6 {[%emt 0:01:06]} 49. Rg5 {[%emt 0:00:00]} Bc5+ {[%emt 0:00:39] This pair of bishops is nice.} 50. Kh2 {[%emt 0:00:20]} Rh8 {[%emt 0:00:19]} 51. Rf6+ {[%emt 0:03:28]} Kb7 {[%emt 0:01:13]} 52. g4 {[%emt 0:00:47]} Be3 {[%emt 0:00:42]} 53. Rgxf5 {[%emt 0:00:39]} gxf5 {[%emt 0:00:02]} 54. Rxf5 {[%emt 0:00:04][%mdl 4096] Endgame. KRB-KR} Bc1 {[%emt 0:00:27]} 55. Rf2 {[%emt 0:00:03]} Re8 {[%emt 0:00:46]} 56. Kg3 {[%emt 0:00:13]} Re1 {[%emt 0:00:10]} 57. Rc2 {[%emt 0:00:30]} (57. c4 $17) 57... Bg5 {[%emt 0:01:16]} 58. c4 {[%emt 0:00:09]} Re3+ {[%emt 0:00:40]} 59. Kf2 {[%emt 0:00:27]} Re4 {[%emt 0:00:05]} (59... Rb3 $19 {And now ...Bf6 would win.} 60. cxb5 axb5) 60. cxb5 $17 {[%emt 0:00:05]} axb5 {[%emt 0:01:00]} (60... Rxg4 61. bxa6+ Kb6 (61... Kxa6 62. Rxc7 Kb6 63. Rf7 $11) 62. b4 $15) 61. Rc5 {[%emt 0:00:05][%csl LRb5,LRg5]} Rxg4 {[%emt 0:00:28]} 62. Rxb5+ {[%emt 0:00:08] [#]} (62. Kf3 $142 Rf4+ 63. Kg3) 62... Kc6 $1 {[%emt 0:00:06]} 63. Rb8 {[%emt 0:00:16]} (63. Re5 $17 {keeps fighting.}) 63... Bc1 {[%emt 0:00:52]} 64. Rb3 {[%emt 0:00:41]} Rg5 {[%emt 0:00:33]} 65. h6 $2 {[%emt 0:02:48]} (65. Rh3) 65... Rf5+ $19 {[%emt 0:00:04]} 66. Ke2 {[%emt 0:00:16]} Bxh6 {[%emt 0:00:01]} 67. Kd1 {[%emt 0:00:58]} Rf2 {[%emt 0:00:12]} 68. Rc3+ {[%emt 0:00:09]} Kb7 {[%emt 0:00:22]} 69. Rb3+ {[%emt 0:00:11]} Kc8 {[%emt 0:00:20]} 70. Rb4 {[%emt 0:00:09]} c6 {[%emt 0:00:57]} 71. Rb3 {[%emt 0:00:39]} (71. a4 $142 Rd2+ 72. Ke1) 71... Kc7 {[%emt 0:00:05]} 72. Ke1 {[%emt 0:00:06]} Rh2 {[%emt 0:00:04]} 73. Kd1 {[%emt 0:00:03]} Rd2+ {[%emt 0:01:33]} 74. Ke1 {[%emt 0:00:03]} Rc2 {[%emt 0:00:03]} 75. Kd1 {[%emt 0:00:06]} Rd2+ {[%emt 0:00:02]} 76. Ke1 $1 {[%emt 0:00:05]} Rc2 {[%emt 0:00:03] aiming for ...Bg7.} 77. Kd1 {[%emt 0:00:32]} Rc1+ {[%emt 0:00:00]} 78. Ke2 {[%emt 0:00:04]} c5 {[%emt 0:00:00]} 79. Rh3 {[%emt 0:00:32]} (79. Rf3 $142 Rc2+ 80. Kd3 Rxb2 81. Kc4 Rc2+ 82. Kb3) 79... Bg7 {[%emt 0:00:00]} 80. Rh7 {[%emt 0:00:49] [#]} Rg1 $1 {[%emt 0:00:00] ...Kc6 would now be deadly.} 81. Kd3 {[%emt 0:00:05]} Kc6 {[%emt 0:00:01]} 82. Rh2 {[%emt 0:07:17]} Rb1 {[%emt 0:03:06]} (82... Kd5 $142 {Threatens to win with ...Rb1.} 83. Kc2 c4) 83. Rh7 {[%emt 0:00:08]} Bd4 {[%emt 0:01:48]} ({Inferior is} 83... Bxb2 84. Kc2 $11) 84. Rh6+ {[%emt 0:00:05]} Kd5 {[%emt 0:00:08]} 85. Rh5+ {[%emt 0:00:03]} Be5 {[%emt 0:00:00] Quite a comeback for Black.   Weighted Error Value: White=0.36/Black=0.34.  Loses game:     	White=2     	Black=1      Missed win:     	---       	Black=2      Mistake:       	White=11    	Black=3      Inaccurate:     	White=4     	Black=1      OK:         	White=17    	Black=16     Best:        	White=4     	Black=7      Strong:       	---       	Black=2} 0-1

[Event "26th Triest Festival 2024"]
[Site "Triest"]
[Date "2024.09.03"]
[Round "5.5"]
[White "Chia, Yu Zhe Ashton"]
[Black "Kovchan, Alexander"]
[Result "1/2-1/2"]
[Annotator "TA"]
[ECO "B81"]
[WhiteElo "2224"]
[BlackElo "2455"]
[PlyCount "81"]
[EventDate "2024.09.02"]
[EventType "swiss"]
[EventCountry "ITA"]
[SourceTitle "playchess.com"]
[Source "ChessBase"]
[SourceQuality "1"]
[TimeControl "5400+30"]

{[%evp 14,81,30,21,15,0,50,0,0,0,0,0,14,0,13,0,18,18,14,0,0,3,0,-141,-133,-145,-129,-243,-88,-78,-93,-114,-96,-89,-89,-114,-100,-108,-116,-130,-19,-13,-14,-12,-18,-12,-8,-8,0,0,0,0,0,0,0,0,0,0,0,0,0,0,0,0,0,0,0,0,0,0]} 1. e4 {[%emt 0:02:15]} c5 {[%emt 0:00:09]} 2. Nf3 {[%emt 0:00:51]} d6 {[%emt 0:00:08]} 3. d4 {[%emt 0:00:07]} cxd4 {[%emt 0:00:06]} 4. Nxd4 {[%emt 0:00:05]} Nf6 {[%emt 0:00:06]} 5. Nc3 {[%emt 0:00:05]} a6 {[%emt 0:00:04]} 6. h3 {[%emt 0:00:11]} e6 {[%emt 0:01:27]} 7. g4 {[%emt 0:00:07]} h6 {[%emt 0:00:13]} 8. Bg2 {[%emt 0:00:04]} Be7 {[%emt 0:00:31]} 9. h4 {[%emt 0:00:09]} Nfd7 {[%emt 0:04:50]} ({Better is} 9... Nc6 $11) 10. g5 {[%emt 0:06:24]} hxg5 {[%emt 0:01:10]} 11. hxg5 {[%emt 0:00:07]} Rxh1+ {[%emt 0:00:08]} 12. Bxh1 {[%emt 0:00:02][%cal Od4e6] Threatens to win with Nxe6!} g6 {[%emt 1:27:38]} (12... Bxg5 $2 13. Nxe6 fxe6 14. Qh5+ (14. Qxd6 $2 Qe7 $19) 14... Kf8 15. Bxg5 $18 (15. Qxg5 Qxg5 16. Bxg5 Ne5 $16)) 13. f4 {[%emt 0:05:23]} Nc6 {[%emt 0:00:00]} 14. Be3 {[%emt 0:03:51]} e5 {[%emt 0:00:00]} 15. Nxc6 {[%emt 0:03:02]} bxc6 {[%emt 0:00:00]} 16. Qd2 {[%emt 0:00:06]} exf4 {[%emt 0:00:00]} 17. Bxf4 {[%emt 0:01:18]} Ne5 {[%emt 0:00:00] Prevents Bf3} 18. Bxe5 {[%emt 0:10:47]} (18. O-O-O $11 {keeps the balance.}) 18... dxe5 $17 {[%emt 0:00:00]} 19. Qh2 {[%emt 0:00:04]} Bg4 {[%emt 0:00:00] [#] aiming for ...Qb6.} ({But not} 19... Bxg5 $6 20. Qh8+ Ke7 21. Qxe5+ Kf8 22. Qh8+ Ke7 23. Qe5+ Kf8 24. Qh8+ Ke7 25. Qe5+ $11) 20. Qxe5 {[%emt 0:06:07]} (20. Qh8+ $17 {might work better.} Kd7 21. Qh4) 20... Qb8 $2 {[%emt 0:00:00]} (20... Qb6 $19 {is more deadly. ( -> ...Qe3+)} 21. Kf1 (21. Qh8+ $2 Kd7 $19) 21... Rd8 (21... Qxb2 22. Qh8+ Kd7 23. Qd4+ Ke6 24. Re1 $17) 22. Qh8+ Kd7) 21. Qxb8+ {[%emt 0:09:39]} Rxb8 {[%emt 0:00:00]} 22. e5 {[%emt 0:01:16]} Rxb2 {[%emt 0:00:00]} (22... Bxg5 $2 23. Ne4 Bh4+ 24. Kd2 $19) 23. Bxc6+ {[%emt 0:00:09]} Kf8 {[%emt 0:00:00]} 24. Kd2 {[%emt 0:00:20]} Bxg5+ {[%emt 0:00:00]} 25. Kd3 {[%emt 0:00:11]} Bf4 {[%emt 0:00:00]} 26. Re1 {[%emt 0:07:14] [#]} Bg3 {[%emt 0:00:00] A strong pair of Bishops.} (26... Rb8 $1 $17 {And now ...Bf5+ would win.} 27. Bd5 Re8) 27. Rg1 $1 $11 {[%emt 0:02:31] The position is equal.} Bf5+ {[%emt 0:00:00]} 28. Be4 {[%emt 0:00:07]} Bxe5 {[%emt 0:00:00]} 29. Bxf5 {[%emt 0:00:09]} gxf5 {[%emt 0:00:00]} 30. Rg5 {[%emt 0:03:39]} Bxc3 {[%emt 0:00:00]} 31. Kxc3 {[%emt 0:00:07]} Rxa2 {[%emt 0:00:00]} 32. Rxf5 {[%emt 0:00:04][%mdl 4096] Endgame. KR-KR} Ke7 {[%emt 0:00:00]} 33. Rc5 {[%emt 0:00:41]} Ra4 {[%emt 0:00:00]} 34. Kd3 {[%emt 0:03:33]} Kd6 {[%emt 0:00:00]} 35. Rh5 {[%emt 0:00:15]} f6 {[%emt 0:00:00]} 36. c4 {[%emt 0:01:01]} Ra1 {[%emt 0:00:00]} 37. Kd4 {[%emt 0:02:16]} Rd1+ {[%emt 0:00:00]} 38. Ke4 {[%emt 0:00:08]} Re1+ {[%emt 0:00:00]} 39. Kd4 {[%emt 0:01:17]} Re8 {[%emt 0:00:00]} 40. Rd5+ {[%emt 0:04:12]} Kc7 {[%emt 0:00:00]} 41. Rf5 {[%emt 0:02:02] And White is the lucky defender.   Weighted Error Value: White=0.20 (precise) /Black=0.20 (precise) .  Mistake:       	White=2     	Black=3      Inaccurate:     	White=1     	---        OK:         	White=12    	Black=7      Best:        	White=3     	Black=5      Strong:       	White=1     	---} 1/2-1/2